Cogmind - Beta 15 @@@ ROGUE MODE // 2025.07.09 @ 22:06:01 Player: Rockstar Result: Destroyed by Y-45 Defender with Heavy Assault Rifle Performance ------------- Evolutions (1) 500 Regions Visited (3) 600 Robots Destroyed (12) 60 Value Destroyed (303) 303 Prototype IDs (0) 0 Alien Tech Used (0) 0 Bonus (0) 0 TOTAL SCORE: 1463 Bonus ------- None Cogmind --------- Core Integrity 0/400 Matter 300/300 Energy 100/100 System Corruption 0% Temperature Cool (0) Movement Core (50) Location -9/Materials Parts ------- > --- POWER (1) -------- (None) > --- PROPULSION (4) --- (None) > --- UTILITY (2) ------ Propulsion Shielding > --- WEAPON (2) ------- Flail > --- INVENTORY (5) ---- (None) Peak State ------------ > --- POWER ------------ Light Ion Engine > --- PROPULSION ------- Flight Unit Flight Unit Flight Unit Flight Unit > --- UTILITY ---------- Heat Sink Propulsion Shielding > --- WEAPON ----------- Medium Laser Small Laser > --- INVENTORY -------- Mining Laser [Rating: 9] Favorites ----------- Power Ion Engine Engine Ion Engine Propulsion Flight Unit Wheel Wheel Flight Unit Flight Unit Utility Propulsion Shielding Device Heat Sink Storage Small Storage Unit Protection Propulsion Shielding Weapon Small Laser Energy Gun Small Laser Ballistic Gun Light Assault Rifle Special Weapon Mining Laser Impact Weapon Flail Build | -11 -10 -10 -9 ------- Run | Yrd Mat Min Mat Slots Evolved 2 | . . . 2 Power . | . . . . Propulsion 2 | . . . 2 Utility . | . . . . Weapon . | . . . . Parts Attached 19 | 6 4 1 8 Power 3 | 1 1 . 1 Engine 3 | 1 1 . 1 Core . | . . . . Reactor . | . . . . Propulsion 7 | 2 2 . 3 Treads . | . . . . Leg . | . . . . Wheel 2 | 2 . . . Hover . | . . . . Flight 5 | . 2 . 3 Utility 3 | 1 1 1 . Device 1 | . . 1 . Storage 1 | 1 . . . Processor . | . . . . Hackware . | . . . . Protection 1 | . 1 . . Artifact . | . . . . Weapon 6 | 2 . . 4 Energy Gun 3 | 2 . . 1 Energy Cannon . | . . . . Ballistic Gun 1 | . . . 1 Ballistic Cannon . | . . . . Launcher . | . . . . Special Weapon 1 | . . . 1 Impact Weapon 1 | . . . 1 Slashing Weapon . | . . . . Piercing Weapon . | . . . . Special Melee Weapon . | . . . . Unidentified Prototypes . | . . . . Parts Lost 13 | . . . 13 Power 2 | . . . 2 Propulsion 5 | . . . 5 Utility 1 | . . . 1 Weapon 5 | . . . 5 Highest Loss Streak 13 | . . . 13 To Critical Strikes . | . . . . Average Backups 3 | 2 6 3 . Power . | . 1 . . Propulsion 1 | 1 4 2 . Utility . | . . . . Weapon . | . 1 1 . Tool/Special . | . . . . Unused Backups 6 | . 6 . . Power 1 | . 1 . . Propulsion 4 | . 4 . . Utility . | . . . . Weapon 1 | . 1 . . Tool/Special . | . . . . Average Slot Usage (%) 74 | . 83 88 60 Engine 11 | . 14 14 7 Wheel 8 | . 20 . . Flight 15 | . 5 28 21 Device 3 | . . 3 6 Storage 4 | . 11 . . Protection 8 | . 3 14 11 Energy Gun 20 | . 28 28 11 Peak Build Rating 9 | 6 7 7 9 Average Rating 5 | 4 6 6 5 On Entrance 4 | . 6 6 7 Naked Turns . | . . . . Heaviest Build 14 | 13 14 8 8 Greatest Support 20 | 20 20 8 16 Greatest Overweight (x) 4 | . 4 . 1 Average Overweight (x) . | . . . . Largest Inventory Capacity 8 | 8 8 5 5 Average Capacity 6 | 7 7 5 5 Most Carried 8 | 6 8 4 2 Average Carried 3 | 2 6 3 . Final Capacity 8 | 8 5 5 5 Final Carried 6 | 6 3 3 . Class Distribution -------------------- 88% | Mutant 11% | Sprinter Dominant Class ---------------- Mutant | -10/Materials Mutant | -10/Mines Mutant | -9/Materials Resources | -11 -10 -10 -9 ----------- Run | Yrd Mat Min Mat Matter Collected 338 | 204 56 40 38 Remotely . | . . . . Salvage Created 342 | . 83 91 168 Parts 18 | . 4 1 13 Haulers Intercepted . | . . . . Recyclers Shooed . | . . . . Parts Field Recycled . | . . . . Retrieved Matter . | . . . . Parts Self-Destructed . | . . . . Prevented . | . . . . Kills | -11 -10 -10 -9 ------- Run | Yrd Mat Min Mat Combat Hostiles Destroyed 12 | . 2 2 8 Guns 12 | . 2 2 8 Classes Destroyed 2 | . 1 . 1 Swarmer 6 | . . . 6 Grunt 6 | . 2 2 2 Best Kill Streak 6 | . 2 2 6 Combat Bots Only 6 | . 2 2 6 Max Kills in Single Turn 2 | . 1 1 2 Gunslinging 1 | . . . 1 Exploded . | . . . . Melee . | . . . . Uniques/NPCs Destroyed . | . . . . Combat | -11 -10 -10 -9 -------- Run | Yrd Mat Min Mat Hostile Shots Fired 137 | . 9 11 117 Missed 50 | . 1 7 42 Hits 87 | . 8 4 75 Projectile 87 | . 8 4 75 Critical Strikes 3 | . . . 3 Actively Blocked 1 | . . . 1 Damage Taken 1116 | . 99 50 967 Core 453 | . 48 . 405 Absorbed by Shields . | . . . . Redirected to Shielding 41 | . . 8 33 Core Remaining (%) 90 | 100 . 80 . Volleys Fired 39 | . 6 6 27 Largest 2 | . 2 2 2 Hottest 140 | . 90 90 140 Shots Fired 63 | . 12 12 39 Gun 61 | . 12 12 37 Cannon . | . . . . Launcher . | . . . . Special 2 | . . . 2 Kinetic 4 | . . . 4 Thermal 59 | . 12 12 35 Explosive . | . . . . Electromagnetic . | . . . . Robot Hit Streak 8 | . 6 6 8 Robot Miss Streak 4 | . 2 1 4 Penetration Max . | . . . . Secondary Targets 4 | . . . 4 Max Gunslinging Chain 1 | . . . 1 Shots Hit Robots 46 | . 8 10 28 Core Hits 19 | . 5 5 9 Critical Kills . | . . . . Critical Parts Destroyed . | . . . . Critical Strikes 3 | . 1 . 2 Burn 3 | . 1 . 2 Melee Attacks 4 | . . . 4 Impact 4 | . . . 4 Slashing . | . . . . Piercing . | . . . . Sneak Attacks . | . . . . Combat Hostiles . | . . . . Follow-up Attacks . | . . . . Damage Inflicted 564 | . 95 119 350 Guns 479 | . 95 119 265 Cannons . | . . . . Explosions . | . . . . Melee 61 | . . . 61 Ramming . | . . . . Kinetic 33 | . . . 33 Thermal 470 | . 95 119 256 Explosive . | . . . . Electromagnetic . | . . . . Impact 61 | . . . 61 Slashing . | . . . . Piercing . | . . . . Highest Corruption . | . . . . Average Corruption . | . . . . Corruption Purged . | . . . . Corruption Blocked . | . . . . Overload Shots . | . . . . Overflow Damage . | . . . . Projectiles . | . . . . Explosions . | . . . . Melee . | . . . . Knockbacks . | . . . . Impact . | . . . . Kinetic . | . . . . Secondary . | . . . . Self-Inflicted Damage . | . . . . Shots . | . . . . Rammed . | . . . . Targets Rammed . | . . . . Kicked . | . . . . Crushed . | . . . . Highest Temperature 243 | . 228 243 97 Average Temperature 79 | . 119 132 35 Received Heat Transfer 450 | . 48 27 375 Siege Activations . | . . . . Martial Activations . | . . . . Shielding Activations . | . . . . Robots Disrupted . | . . . . Combat Hostiles . | . . . . Robots Corrupted . | . . . . Combat Hostiles . | . . . . Parts Fried . | . . . . Impact Corruptions . | . . . . Robots Melted . | . . . . Combat Hostiles . | . . . . Parts Melted . | . . . . Heat Transferred 1390 | . 334 310 746 Parts Sabotaged . | . . . . Parts Stolen . | . . . . Parts Stripped . | . . . . Power Chain Reactions . | . . . . Alert | -11 -10 -10 -9 ------- Run | Yrd Mat Min Mat Maximum Alert Level . | . . . . Low Security (%) 100 | 100 100 100 100 Level 1 . | . . . . Level 2 . | . . . . Level 3 . | . . . . Level 4 . | . . . . Level 5 . | . . . . High Security . | . . . . Max Security . | . . . . Peak Influence 96 | . 40 53 96 Initial 16 | . . 3 16 Average 28 | . 20 33 48 Influence Increases 280 | . 50 50 180 Destroy 0b10 Robot/C 240 | . 40 40 160 Destroy Leader 40 | . 10 10 20 Influence Decreases 264 | . 40 17 207 Entered New Map 34 | . . 7 27 Time Decay 100 | . 40 10 50 Lost Part 130 | . . . 130 Squads Dispatched . | . . . . Investigation . | . . . . Extermination . | . . . . Reinforcement . | . . . . Assault . | . . . . Garrison . | . . . . Intercept . | . . . . Searches Triggered . | . . . . Construction Impeded . | . . . . Haulers Reinforced . | . . . . Active Scanning Responses . | . . . . Cargo Convoy Interrupts . | . . . . Stealth | -11 -10 -10 -9 --------- Run | Yrd Mat Min Mat Distress Signals 1 | . . . 1 Communications Jammed . | . . . . Distress Signals . | . . . . Times Spotted 22 | . 6 2 14 Peak Tracking Total 8 | . 4 2 8 Tactical Retreats . | . . . . Traps | -11 -10 -10 -9 ------- Run | Yrd Mat Min Mat Traps Triggered 1 | . . . 1 Indirectly . | . . . . Trap Hack Attempts . | . . . . Triggered . | . . . . Disarmed . | . . . . Reprogrammed . | . . . . Reused . | . . . . Traps Extracted . | . . . . Installed . | . . . . Triggered . | . . . . Machines | -11 -10 -10 -9 ---------- Run | Yrd Mat Min Mat Machines Disabled . | . . . . Max in Single Turn . | . . . . Machines Repaired . | . . . . Machines Dismantled . | . . . . Machines Sabotaged . | . . . . Overloaded Fab Kills . | . . . . Hacking | -11 -10 -10 -9 --------- Run | Yrd Mat Min Mat Machines Accessed 2 | . 2 . . Terminals 2 | . 2 . . Fabricators . | . . . . Repair Stations . | . . . . Recycling Units . | . . . . Scanalyzers . | . . . . Garrison Access . | . . . . Total Hacks 2 | . 2 . . Successful . | . . . . Failed 2 | . 2 . . Catastrophic 2 | . 2 . . Database Lockouts . | . . . . Manual 2 | . 2 . . Terminals 2 | . 2 . . Fabricators . | . . . . Repair Stations . | . . . . Recycling Units . | . . . . Scanalyzers . | . . . . Garrison Access . | . . . . Terminal Hacks . | . . . . Fabricator Hacks . | . . . . Repair Station Hacks . | . . . . Recycling Unit Hacks . | . . . . Scanalyzer . | . . . . Garrison Access Hacks . | . . . . Unauthorized Hacks . | . . . . Terminals . | . . . . Fabricators . | . . . . Repair Stations . | . . . . Recycling Units . | . . . . Scanalyzers . | . . . . Garrison Access . | . . . . Data Cores Recovered . | . . . . Used . | . . . . Hacking Detections 2 | . 2 . . Full Trace Events . | . . . . Feedback Events . | . . . . Feedback Blocked . | . . . . Robot Schematics Acquired . | . . . . Robots Built . | . . . . Authchips . | . . . . Time . | . . . . Total Robot Build Rating . | . . . . Part Schematics Acquired . | . . . . Parts Built . | . . . . Authchips . | . . . . Time . | . . . . Total Part Build Rating . | . . . . Parts Repaired . | . . . . Time . | . . . . Parts Recycled . | . . . . Recycled Matter . | . . . . Retrieved Matter . | . . . . Retrieved Components . | . . . . Parts Scanalyzed . | . . . . Part Schematics Acquired . | . . . . Parts Damaged . | . . . . Bothacking | -11 -10 -10 -9 ------------ Run | Yrd Mat Min Mat Used RIF Installer . | . . . . Robots Hacked . | . . . . Non-combat . | . . . . Combat . | . . . . Robot Hacks Applied . | . . . . Relay Couplers Released . | . . . . Fabnet Peak Effective % . | . . . . Robots Rewired . | . . . . Allies Hacked . | . . . . Hacks Repelled . | . . . . Allies | -11 -10 -10 -9 -------- Run | Yrd Mat Min Mat Total Allies . | . . . . Largest Group . | . . . . Highest-Rated Group . | . . . . Highest-Rated Ally . | . . . . Total Orders . | . . . . Ally Attacks . | . . . . Total Damage . | . . . . Kills . | . . . . Allies Corrupted . | . . . . Allies Melted . | . . . . Intel | -11 -10 -10 -9 ------- Run | Yrd Mat Min Mat Active Infowar (turns) . | . . . . Robot Analysis Total . | . . . . Derelict Logs Recovered . | . . . . Drone Launches . | . . . . Drone Recoveries . | . . . . Exploration | -11 -10 -10 -9 ------------- Run | Yrd Mat Min Mat Turns Passed 289 | 49 103 29 108 Spaces Moved 195 | 44 78 24 49 Core 8 | 2 1 . 5 Treads . | . . . . Legs . | . . . . Wheels 95 | 42 53 . . Hover . | . . . . Flight 92 | . 24 24 44 Fastest Speed 31 | 50 37 37 31 Average Speed 60 | 78 72 37 39 Slowest Speed 280 | 80 280 37 120 Overloaded Moves . | . . . . Propulsion Burnouts . | . . . . Robots Hopped . | . . . . Potential Cave-ins . | . . . . Cave-ins Triggered . | . . . . Exploration Rate (%) 13 | 4 30 10 9 Regions Visited 3 Branch Regions 1 Pre-discovered Areas . | . . . . Known Exits Taken . | . . . . Unknown Exits Taken 3 | 1 1 1 . Scrap Searched . | . . . . Spaces Dug . | . . . . Terrain Destroyed . | . . . . Melee . | . . . . Projectile . | . . . . AOE . | . . . . Terrain Rammed . | . . . . Walls Destroyed . | . . . . Machines Disabled . | . . . . Actions | -11 -10 -10 -9 --------- Run | Yrd Mat Min Mat Total 288 | 55 114 31 88 Wait 15 | . 15 . . Move 192 | 43 77 23 49 Hop . | . . . . Pick Up 11 | 6 4 1 . Fast Attach 14 | 6 3 . 5 Attach 4 | . . 1 3 Detach 1 | . 1 . . Swap 1 | . 1 . . Drop 7 | . 7 . . Fire 39 | . 6 6 27 Melee 4 | . . . 4 Ram . | . . . . Kick . | . . . . Crush . | . . . . Escape Stasis . | . . . . Rewire . | . . . . Trap . | . . . . Miscellaneous . | . . . . Route ------- -11/Scrapyard -10/Materials -10/Mines -9/Materials History --------- Turn | Location | Event 2 | -11/Scrapyard | Met Revision 17 16 | -11/Scrapyard | Discovered new exit (range 16) 50 | -11/Scrapyard | Entered Materials 133 | -10/Materials | Discovered new exit (range 9) 153 | -10/Materials | Entered Mines 181 | -10/Mines | Discovered new exit (range 3) 182 | -10/Mines | Entered Materials 182 | -9/Materials | Evolved 2 slots: Propulsion x2 265 | -9/Materials | Core integrity fell below 50% 287 | -9/Materials | Core integrity fell below 20% 290 | -9/Materials | Destroyed by Y-45 Defender with Heavy Assault Rifle Last Messages --------------- G-34 Mercenary destroyed. R-06 Scavenger collects Aluminum Leg. Heat Sink destroyed. Acquired Sml. Laser. R-06 Scavenger collects Ion Engine. R-06 Scavenger destroyed. G-34 Mercenary destroyed. Switching to secondary target: Y-45 Defender. Critical hit (Burn: +37). Lgt. Assault Rifle destroyed. Lgt. Ion Engine destroyed. Critical hit (Burn: +37). G-47 Trooper destroyed. Flight Unit destroyed. Sml. Laser destroyed. Acquired 14 matter. Acquired Flail. Acquired 10 matter. R-06 Scavenger collects Aluminum Leg. R-06 Scavenger collects Sml. Laser. Map ----- +----------------------------------------------------+ | ??????????????????????????????????????? | | ??????????????????????????????????????? | | ??????????????????????????????????????? | | ??????????????????????????????????????? | | ??????????????????????????????????????? | | ??????????????????????????????????????? | | ??????????????????????????????????????? | | ??????????????????????????????????????? | | ??????????????????????????????????????? | | ??????????????????????????????????????? | | ??????????????????????????????????????? | | ??????????????????????????????????????? | | ??????????????????????????????????????? | | ??????????????????????????????????????? | | ??????????????????????????????????????? | | ??????????????????????????????????????? | | ??????????????????????????????????????? | | ??????????????????????????????????????? | | ??????????????????????????????????????? | | ??????????????????????????????????????? | | ??????????????????????????????????????? | | ??????????????????????????????????????? | | ??????????????????????????????????????? | | ?????????????#######??????????????????? | | ?????????????#Y[%*!#??????????????????? | | ????????# ####@ =%%#??????????????????? | | ????????# Y%%"r%#??????????????????? | | ?############# %[#??????????????????? | | ?# # #??????????????????? | | ?# ### ###??????????????????? | | ?? ### ##???????????????????? | | ???? ?## ##???????????????????? | | ?????? ?## ##???????????????????? | | ???????#+##+#### ########?????????????? | | ???????# ^ ???????? | | ???????# ^ ???????? | | ???????# !???????? | | ???????### ############### ????????? | | ??########+## #???????????????????????? | | ??# # #???????????????????????? | | ??# # ##############??????????? | | ??# """ """ # ?????????? | | ??# """ """ + ?????????? | | ??# """ """ # ?????????? | | ??? # #########?????????????? | | ??? # #?????????????????????? | | ??? # #?????????????????????? | | ??########### #?######??????????????? | | ?????######?# #? #??????????????? | | ?????# # # #??????????????? | +----------------------------------------------------+ Best States ------------- Heat Dissipation 38 Energy Generation 10 Energy Capacity 250 Matter Stores 300 Matter Capacity 300 Sight Range 16 Terrain Scan Density 10 Propulsion Shielding 33 Evasion (%) 63 Item Schematics ----------------- None Robot Schematics ------------------ None Fabricated ------------ Nothing Repaired ---------- Nothing Alien Tech Used ----------------- None Achievements -------------- None Challenges ------------ None Game ------ Seed NovaWeaponsComputer Manual? 0 Play Time 00:08:51 Cumulative 52.3 hours Start 2025.07.09 @ 21:59:09 End 2025.07.09 @ 22:06:01 Sessions 1 Manual Loads 0 Difficulty Rogue Special Mode None Game No. 43 Rogue 40 Adventurer 1 Explorer 2 Win Type - Total 0 Types 0/0/0/0/0/0/0/0/0/0 Lore% 19 Gallery% 34 Achievement% 28 Wizard Run 0 Options --------- Layout 0 ASCII 0 Keyboard 0 Movement Mouse Keybinds 0 Fullscreen 2 Font 24/Smallcaps Map View 76x50 Zoom Use 0% Tactical HUD 0 Map Filters NONE Filters NONE Steam 1 RUN: 4cd772ba-7b11-45b3-a8ea-f73f505b11d1